fUST/lending_fUST_20250102
["ID","MTS","AMOUNT","RATE_DAILY","PERIOD"]
[347434635,1735805441274,-453.8193436,0.0001995,4]
[347434636,1735805441284,-500.0,0.00019973,2]
[347434637,1735805441293,-150.23,0.0002,2]
[347434638,1735805441302,-500.0,0.0002,2]
[347434639,1735805441311,-151.0,0.0002,2]
[347434640,1735805441321,-17797.0,0.0002,3]
[347434641,1735805441330,-24391.91092416,0.0002,2]
[347434642,1735805441339,-154.45,0.0002,2]
[347434643,1735805441348,-500.0,0.0002,3]
[347434644,1735805441357,-500.0,0.0002,3]
[347434645,1735805441366,-582.48,0.0002,3]
[347434646,1735805441375,-179.5603586,0.0002,3]
[347434647,1735805441385,-151.28821919,0.0002,2]
[347434648,1735805441394,-500.0,0.0002,3]
[347434649,1735805441403,-500.0,0.0002,3]
[347434650,1735805441412,-20577.0,0.0002,2]
[347434651,1735805441422,-1317.37,0.0002,3]
[347434652,1735805441431,-500.0,0.0002,3]
[347434653,1735805441442,-452.6687541,0.0002,3]
[347434654,1735805441451,-500.0,0.0002,3]
[347434655,1735805441462,-500.0,0.0002,3]
[347434656,1735805441471,-500.0,0.0002,3]
[347434657,1735805441480,-500.0,0.0002,3]
[347434658,1735805441489,-500.0,0.0002,3]
[347434659,1735805441497,-500.0,0.0002,3]
[347434660,1735805441506,-500.0,0.0002,3]
[347434661,1735805441515,-528.61,0.0002,3]
[347434662,1735805441524,-500.0,0.0002,3]
[347434663,1735805441533,-859.15,0.0002,3]
[347434664,1735805441543,-809.43,0.0002,3]
[347434665,1735805441552,-500.0,0.0002,3]
[347434666,1735805441561,-500.0,0.0002,3]
[347434667,1735805441570,-2233.57,0.0002,3]
[347434668,1735805441579,-564.33,0.0002,3]
[347434669,1735805441588,-500.0,0.0002,3]
[347434670,1735805441597,-796.73,0.0002,3]
[347434671,1735805441606,-531.59,0.0002,3]
[347434672,1735805441615,-500.0,0.0002,3]
[347434673,1735805441624,-500.0,0.0002,3]
[347434674,1735805441633,-500.0,0.0002,3]
[347434675,1735805441642,-500.0,0.0002,3]
[347434676,1735805441651,-500.0,0.0002,3]
[347434677,1735805441660,-500.0,0.0002,3]
[347434678,1735805441670,-500.0,0.0002,3]
[347434679,1735805441679,-500.0,0.0002,3]
[347434680,1735805441789,-518.07,0.0002,3]
[347434681,1735805441799,-500.0,0.0002,3]
[347434682,1735805441809,-500.0,0.0002,3]
[347434683,1735805441818,-500.0,0.0002,3]
[347434684,1735805441827,-500.0,0.0002,3]
[347434685,1735805441836,-2210.53,0.0002,3]
[347434686,1735805441846,-500.0,0.0002,3]
[347434687,1735805441856,-500.0,0.0002,3]
[347434688,1735805441864,-636.31,0.0002,3]
[347434689,1735805441873,-944.78,0.0002,3]
[347434690,1735805441882,-528.12,0.0002,3]
[347434691,1735805441891,-500.0,0.0002,3]
[347434692,1735805441900,-500.0,0.0002,3]
[347434693,1735805441910,-500.0,0.0002,3]
[347434694,1735805441921,-500.0,0.0002,3]
[347434695,1735805441931,-506.21,0.0002,3]
[347434696,1735805441942,-500.0,0.0002,3]
[347434697,1735805441951,-500.0,0.0002,3]
[347434698,1735805441960,-674.19,0.0002,3]
[347434699,1735805441970,-827.43,0.0002,3]
[347434700,1735805441981,-580.44,0.0002,3]
[347434701,1735805441994,-500.0,0.0002,3]
[347434702,1735805442004,-500.0,0.0002,3]
[347434703,1735805442013,-500.0,0.0002,3]
[347434704,1735805442021,-500.0,0.0002,3]
[347434705,1735805442030,-181.487824,0.0002,2]
[347434706,1735805442039,-500.0,0.0002,3]
[347434707,1735805442049,-1853.26,0.0002,3]
[347434708,1735805442058,-588.43,0.0002,3]
[347434709,1735805442067,-500.0,0.0002,3]
[347434710,1735805442076,-503.20306418,0.0002,3]
[347434711,1735805442086,-500.0,0.0002,3]
[347434712,1735805442095,-500.0,0.0002,3]
[347434713,1735805442105,-603.15,0.0002,3]
[347434714,1735805442114,-500.0,0.0002,3]
[347434715,1735805442123,-22170.41,0.0002,3]
[347434716,1735805442133,-500.0,0.0002,3]
[347434717,1735805442142,-500.0,0.0002,3]
[347434718,1735805442151,-500.0,0.0002,3]
[347434719,1735805442161,-1102.74,0.0002,3]
[347434720,1735805442170,-3028.19,0.0002,3]
[347434721,1735805442180,-753.34,0.0002,3]
[347434722,1735805442191,-1382.24,0.0002,3]
[347434723,1735805442204,-5252.62,0.0002,3]
[347434724,1735805442214,-500.0,0.0002,3]
[347434725,1735805442223,-504.12859687,0.0002,3]
[347434726,1735805442233,-1287.97,0.0002,3]
[347434727,1735805442242,-975.07,0.0002,3]
[347434728,1735805442252,-500.0,0.0002,3]
[347434729,1735805442261,-661.76,0.0002,3]
[347434730,1735805442270,-1278.07,0.0002,3]
[347434731,1735805442280,-500.0,0.0002,3]
[347434732,1735805442290,-1068.33,0.0002,2]
[347434733,1735805442299,-500.0,0.0002,3]
[347434734,1735805442308,-500.0,0.0002,3]
[347434735,1735805442317,-500.0,0.0002,3]
[347434736,1735805442327,-580.09,0.0002,3]
[347434737,1735805442336,-1620.94,0.0002,3]
[347434738,1735805442345,-500.0,0.0002,3]
[347434739,1735805442354,-500.0,0.0002,3]
[347434740,1735805442363,-500.0,0.0002,3]
[347434741,1735805442372,-1571.24,0.0002,3]
[347434742,1735805442382,-500.0,0.0002,3]
[347434743,1735805442391,-1135.2,0.0002,3]
[347434744,1735805442400,-865.39,0.0002,3]
[347434745,1735805442410,-500.0,0.0002,3]
[347434746,1735805442419,-500.0,0.0002,3]
[347434747,1735805442429,-500.0,0.0002,3]
[347434748,1735805442440,-1005.16,0.0002,3]
[347434749,1735805442449,-500.0,0.0002,3]
[347434750,1735805442458,-507.0937338,0.0002,3]
[347434751,1735805442467,-1134.18,0.0002,3]
[347434752,1735805442477,-515.98,0.0002,3]
[347434753,1735805442486,-531.58,0.0002,3]
[347434754,1735805442495,-994.7,0.0002,3]
[347434755,1735805442504,-500.0,0.0002,3]
[347434756,1735805442513,-500.0,0.0002,3]
[347434757,1735805442522,-893.14,0.0002,3]
[347434758,1735805442532,-766.44,0.0002,3]
[347434759,1735805442541,-500.0,0.0002,3]
[347434760,1735805442550,-500.0,0.0002,3]
[347434761,1735805442559,-500.0,0.0002,3]
[347434762,1735805442568,-500.0,0.0002,3]
[347434763,1735805442577,-500.0,0.0002,3]
[347434764,1735805442586,-500.0,0.0002,3]
[347434765,1735805442595,-557.7,0.0002,3]
[347434766,1735805442604,-6134.51,0.0002,3]
[347434767,1735805442614,-500.0,0.0002,3]
[347434768,1735805442623,-577.45,0.0002,3]
[347434769,1735805442632,-151.0,0.000201,3]
[347434770,1735805442641,-453.8193436,0.0002014,4]
[347434771,1735805442650,-194.0,0.00020172,5]
[347434772,1735805442659,-151.0,0.000202,4]
[347434773,1735805442668,-160.0,0.00020272,2]
[347434774,1735805442677,-502.71776213,0.00020273,3]
[347434775,1735805442686,-500.0,0.00020273,3]
[347434776,1735805442695,-500.0,0.00020273,3]
[347434777,1735805442704,-500.0,0.00020273,3]
[347434778,1735805442713,-1317.37,0.00020273,3]
[347434779,1735805442722,-500.0,0.00020273,3]
[347434780,1735805442731,-393.76343054,0.00020273,3]
[347434781,1735805442740,-500.0,0.00020273,3]
[347434782,1735805442748,-500.0,0.00020273,3]
[347434783,1735805442758,-500.0,0.00020273,3]
[347434784,1735805442767,-631.93948015,0.00020273,3]
[347434785,1735805442776,-528.61,0.00020273,3]
[347434786,1735805442785,-500.0,0.00020273,3]
[347434787,1735805442794,-859.15,0.00020273,3]
[347434788,1735805442805,-809.43,0.00020273,3]
[347434789,1735805442814,-500.0,0.00020273,3]
[347434790,1735805442824,-2233.57,0.00020273,3]
[347434791,1735805442833,-564.33,0.00020273,3]
[347434792,1735805442843,-500.0,0.00020273,3]
[347434793,1735805442852,-796.73,0.00020273,3]
[347434794,1735805442862,-531.59,0.00020273,3]
[347434795,1735805442870,-500.0,0.00020273,3]
[347434796,1735805442880,-500.0,0.00020273,3]
[347434797,1735805442889,-500.0,0.00020273,3]
[347434798,1735805442899,-235.94055217,0.00020273,3]
[347434799,1735805442908,-500.0,0.00020273,3]
[347434800,1735805442917,-639.18799175,0.00020273,3]
[347434801,1735805442927,-500.0,0.00020273,3]
[347434802,1735805442936,-500.0,0.00020273,3]
[347434803,1735805442945,-518.07,0.00020273,3]
[347434804,1735805442954,-500.0,0.00020273,3]
[347434805,1735805442964,-500.0,0.00020273,3]
[347434806,1735805442973,-500.0,0.00020273,3]
[347434807,1735805442982,-500.0,0.00020273,3]
[347434808,1735805442991,-2210.53,0.00020273,3]
[347434809,1735805443000,-500.0,0.00020273,3]
[347434810,1735805443010,-296.52681724,0.00020273,3]
[347434811,1735805443019,-636.31,0.00020273,3]
[347434812,1735805443029,-944.78,0.00020273,3]
[347434813,1735805443039,-528.12,0.00020273,3]
[347434814,1735805443049,-500.0,0.00020273,3]
[347434815,1735805443059,-500.0,0.00020273,3]
[347434816,1735805443068,-500.0,0.00020273,3]
[347434817,1735805443078,-500.0,0.00020273,3]
[347434818,1735805443088,-506.21,0.00020273,3]
[347434820,1735805443097,-500.0,0.00020273,3]
[347434822,1735805443106,-500.0,0.00020273,3]
[347434823,1735805443115,-674.19,0.00020273,3]
[347434824,1735805443124,-827.43,0.00020273,3]
[347434826,1735805443134,-580.44,0.00020273,3]
[347434827,1735805443144,-500.0,0.00020273,3]
[347434828,1735805443153,-500.0,0.00020273,3]
[347434829,1735805443162,-500.0,0.00020273,3]
[347434830,1735805443171,-1853.26,0.00020273,3]
[347434831,1735805443181,-500.0,0.00020273,3]
[347434832,1735805443190,-588.43,0.00020273,3]
[347434833,1735805443201,-500.0,0.00020273,3]
[347434834,1735805443210,-500.0,0.00020273,3]
[347434835,1735805443219,-500.0,0.00020273,3]
[347434836,1735805443228,-603.15,0.00020273,3]
[347434837,1735805443238,-500.0,0.00020273,3]
[347434838,1735805443247,-22170.41,0.00020273,3]
[347434839,1735805443256,-500.0,0.00020273,3]
[347434841,1735805443266,-512.33346836,0.00020273,3]
[347434842,1735805443276,-500.0,0.00020273,3]
[347434843,1735805443286,-1102.74,0.00020273,3]
[347434844,1735805443295,-3028.19,0.00020273,3]
[347434845,1735805443304,-753.34,0.00020273,3]
[347434846,1735805443313,-1382.24,0.00020273,3]
[347434848,1735805443323,-5252.62,0.00020273,3]
[347434851,1735805443332,-500.0,0.00020273,3]
[347434853,1735805443341,-1287.97,0.00020273,3]
[347434855,1735805443350,-975.07,0.00020273,3]
[347434856,1735805443359,-500.0,0.00020273,3]
[347434857,1735805443368,-661.76,0.00020273,3]
[347434859,1735805443377,-1278.07,0.00020273,3]
[347434861,1735805443386,-507.61349741,0.00020273,3]
[347434863,1735805443394,-1068.33,0.00020273,2]
[347434865,1735805443403,-506.20255805,0.00020273,3]
[347434867,1735805443412,-499.0,0.00020273,2]
[347434869,1735805443421,-500.0,0.00020273,3]
[347434871,1735805443431,-500.0,0.00020273,3]
[347434873,1735805443440,-580.09,0.00020273,3]
[347434874,1735805443449,-1620.94,0.00020273,3]
[347434876,1735805443458,-500.0,0.00020273,3]
[347434877,1735805443467,-500.0,0.00020273,3]
[347434878,1735805443476,-500.0,0.00020273,3]
[347434880,1735805443485,-1571.24,0.00020273,3]
[347434881,1735805443494,-500.0,0.00020273,3]
[347434882,1735805443503,-1135.2,0.00020273,3]
[347434883,1735805443512,-865.39,0.00020273,3]
[347434885,1735805443521,-500.0,0.00020273,3]
[347434887,1735805443530,-468.03186624,0.00020273,3]
[347434888,1735805443539,-500.0,0.00020273,3]
[347434889,1735805443548,-1005.16,0.00020273,3]
[347434890,1735805443557,-500.0,0.00020273,3]
[347434891,1735805443566,-1134.18,0.00020273,3]
[347434893,1735805443575,-515.98,0.00020273,3]
[347434894,1735805443584,-531.58,0.00020273,3]
[347434896,1735805443593,-994.7,0.00020273,3]
[347434897,1735805443602,-500.0,0.00020273,3]
[347434898,1735805443611,-500.0,0.00020273,3]
[347434899,1735805443620,-893.14,0.00020273,3]
[347434900,1735805443630,-766.44,0.00020273,3]
[347434901,1735805443639,-204.72,0.00020273,3]
[347434903,1735805443648,-500.0,0.00020273,3]
[347434904,1735805443657,-500.0,0.00020273,3]
[347434905,1735805443666,-500.0,0.00020273,3]
[347434906,1735805443675,-500.0,0.00020273,3]
[347434907,1735805443683,-557.7,0.00020273,3]
[347434908,1735805443693,-6134.51,0.00020273,3]
[347434909,1735805443702,-500.0,0.00020273,3]
[347434910,1735805443711,-577.45,0.00020273,3]
[347434911,1735805443720,-235.59919679,0.00020274,2]
[347434912,1735805443730,-500.0,0.00020274,2]
[347434913,1735805443739,-170.26107578,0.00020321,2]
[347434914,1735805443748,-454.10633202,0.0002033,4]
[347434915,1735805443758,-151.0,0.000204,3]
[347434916,1735805443767,-160.0,0.00020416,3]
[347434917,1735805443776,-194.0,0.00020482,5]
[347434918,1735805443785,-160.43041261,0.00020499,2]
[347434919,1735805443794,-75464.00587266,0.000205,2]
[347434920,1735805444742,-346.0,0.00018986,2]
[347434921,1735805444782,-865.8882459,0.00018986,2]
[347434922,1735805444791,-581.03225046,0.00019078,2]
[347434923,1735805445092,220.39,0.00014,2]
[347434936,1735805446603,-2342.04968165,0.00019078,2]
[347434937,1735805446613,-192.60396246,0.00019177,2]
[347434938,1735805446622,-150.23,0.00019178,2]
[347434939,1735805446636,-152.82093858,0.00019178,2]
[347434940,1735805446651,-151.09738102,0.00019452,2]
[347434941,1735805446665,-394.0,0.00020191,2]
[347434942,1735805446678,-14659.53700584,0.000205,2]
[347434953,1735805851842,160.0,0.0002235,120]
[347434955,1735805951440,163.750157,0.00013973,2]
[347434957,1735805971872,160.0,0.00022711,120]
[347434962,1735806151859,160.0,0.00022353,120]
[347434970,1735806450798,160.0,0.00022311,120]
[347435015,1735806631952,-2059.71957006,0.00019078,2]
[347435027,1735806637663,-497.97712058,0.00019078,2]
[347435028,1735806637674,-178.797,0.00019177,2]
[347435029,1735806637683,-500.0,0.00019178,2]
[347435030,1735806637692,-500.0,0.00019178,2]
[347435031,1735806637701,-500.0,0.00019178,2]
[347435032,1735806637711,-500.0,0.00019178,2]
[347435033,1735806637720,-500.0,0.00019178,2]
[347435034,1735806637730,-500.0,0.00019178,2]
[347435035,1735806637739,-500.0,0.00019178,2]
[347435036,1735806637748,-500.0,0.00019178,2]
[347435037,1735806637757,-500.0,0.00019178,2]
[347435038,1735806637767,-500.0,0.00019178,2]
[347435039,1735806637776,-500.0,0.00019178,2]
[347435040,1735806637785,-500.0,0.00019178,2]
[347435041,1735806637795,-500.0,0.00019178,2]
[347435043,1735806637804,-500.0,0.00019178,2]
[347435044,1735806637813,-4172.28,0.00019178,2]
[347435045,1735806637822,-500.0,0.00019178,2]
[347435046,1735806637831,-500.0,0.00019178,2]
[347435047,1735806637840,-500.0,0.00019178,2]
[347435048,1735806637849,-700.99,0.00019178,2]
[347435049,1735806637860,-500.0,0.00019178,2]
[347435050,1735806637870,-500.0,0.00019178,2]
[347435051,1735806637879,-500.0,0.00019178,2]
[347435052,1735806637888,-500.0,0.00019178,2]
[347435053,1735806637897,-4906.33,0.00019178,2]
[347435054,1735806637907,-500.0,0.00019178,2]
[347435055,1735806637916,-500.0,0.00019178,2]
[347435056,1735806637926,-661.63,0.00019178,2]
[347435057,1735806637935,-500.0,0.00019178,2]
[347435058,1735806637944,-651.58,0.00019178,2]
[347435059,1735806637954,-492.60260998,0.00019178,2]
[347435060,1735806637963,-1042.92,0.00019178,2]
[347435061,1735806637975,-500.0,0.00019178,2]
[347435062,1735806637988,-500.0,0.00019178,2]
[347435063,1735806637997,-500.0,0.00019178,2]
[347435064,1735806638007,-500.0,0.00019178,2]
[347435065,1735806638016,-500.0,0.00019178,2]
[347435066,1735806638025,-500.0,0.00019178,2]
[347435067,1735806638034,-517.76700705,0.00019178,2]
[347435068,1735806638044,-500.0,0.00019178,2]
[347435069,1735806638053,-500.0,0.00019178,2]
[347435070,1735806638063,-500.0,0.00019178,2]
[347435071,1735806638072,-500.0,0.00019178,2]
[347435072,1735806638082,-508.73360411,0.00019178,2]
[347435073,1735806638092,-500.0,0.00019178,2]
[347435074,1735806638101,-500.0,0.00019178,2]
[347435075,1735806638110,-500.0,0.00019178,2]
[347435076,1735806638120,-500.0,0.00019178,2]
[347435077,1735806638129,-524.58,0.00019178,2]
[347435078,1735806638139,-500.0,0.00019178,2]
[347435079,1735806638148,-500.0,0.00019178,2]
[347435080,1735806638158,-500.0,0.00019178,2]
[347435081,1735806638167,-500.0,0.00019178,2]
[347435082,1735806638177,-500.0,0.00019178,2]
[347435083,1735806638187,-655.05,0.00019178,2]
[347435084,1735806638347,-500.0,0.00019178,2]
[347435085,1735806638357,-1799.14,0.00019178,2]
[347435086,1735806638366,-500.0,0.00019178,2]
[347435087,1735806638376,-17822.75,0.00019178,2]
[347435088,1735806638385,-533.73,0.00019178,2]
[347435089,1735806638394,-500.0,0.00019178,2]
[347435090,1735806638403,-500.0,0.00019178,2]
[347435091,1735806638412,-544.73,0.00019178,2]
[347435092,1735806638421,-617.23,0.00019178,2]
[347435093,1735806638430,-437.93205471,0.00019178,2]
[347435094,1735806638439,-893.83,0.00019178,2]
[347435095,1735806638449,-500.0,0.00019178,2]
[347435096,1735806638458,-500.0,0.00019178,2]
[347435097,1735806638467,-1115.72,0.00019178,2]
[347435098,1735806638479,-500.0,0.00019178,2]
[347435099,1735806638489,-2397.32,0.00019178,2]
[347435100,1735806638499,-734.34642399,0.00019178,2]
[347435101,1735806638512,-306.13357601,0.00019178,2]
[347435102,1735806638521,-771.93,0.00019178,2]
[347435103,1735806638530,-500.0,0.00019178,2]
[347435104,1735806638539,-390.89382893,0.00019178,2]
[347435105,1735806638551,-620.91617107,0.00019178,2]
[347435106,1735806638560,-500.0,0.00019178,2]
[347435107,1735806638569,-1780.7,0.00019178,2]
[347435108,1735806638579,-500.0,0.00019178,2]
[347435109,1735806638591,-18.11130472,0.00019178,2]
[347435122,1735806639737,-827.64869528,0.00019178,2]
[347435123,1735806639746,-129.35130472,0.00019178,2]
[347435134,1735806642815,-359.22400054,0.00019178,2]
[347435146,1735806645797,-11.42469474,0.00019178,2]
[347435147,1735806645806,-309.02012044,0.00019178,2]
[347435148,1735806645816,-685.1,0.00019178,2]
[347435149,1735806645826,-1307.28,0.00019178,2]
[347435150,1735806645836,-816.59,0.00019178,2]
[347435151,1735806645846,-500.0,0.00019178,2]
[347435152,1735806645856,-534.63172045,0.00019178,2]
[347435153,1735806645868,-384.89827955,0.00019178,2]
[347435154,1735806645877,-112.02986312,0.00019178,2]
[347435155,1735806645920,-387.97013688,0.00019178,2]
[347435156,1735806645930,-500.0,0.00019178,2]
[347435157,1735806645939,-1266.46,0.00019178,2]
[347435158,1735806645949,-218.96986312,0.00019178,2]
[347435161,1735806691341,160.0,0.00022638,120]
[347435164,1735806867662,163.750157,0.00013973,2]
[347435166,1735806997748,599.0,0.00025,120]
[347435172,1735807230873,160.0,0.00024793,120]
[347435174,1735807289418,3000.0,0.00025,120]
[347435176,1735807296900,3000.0,0.00025,120]
[347435177,1735807305336,4724.8,0.00025,120]
[347435183,1735807583523,1000.0,0.00025,120]
[347435184,1735807590723,160.0,0.00023856,120]
[347435187,1735807672821,-2237.98460431,0.000179,2]
[347435188,1735807672845,-300.0,0.00017998,2]
[347435189,1735807672869,-34974.39065814,0.00017999,3]
[347435190,1735807672892,-2000.92,0.00018,3]
[347435191,1735807672917,-2000.0,0.000185,3]
[347435192,1735807672943,-2237.98460425,0.00018654,2]
[347435193,1735807672967,-2000.0,0.00019,3]
[347435194,1735807672991,-187.33310948,0.00019078,2]
[347435195,1735807673016,-500.0,0.00019177,2]
[347435196,1735807673042,-500.0,0.00019177,2]
[347435197,1735807673066,-500.0,0.00019177,2]
[347435198,1735807673091,-500.0,0.00019177,2]
[347435199,1735807673117,-500.0,0.00019177,2]
[347435200,1735807673142,-500.0,0.00019177,2]
[347435201,1735807673166,-251.10013827,0.00019177,2]
[347435202,1735807673190,-500.0,0.00019177,2]
[347435203,1735807673215,-500.0,0.00019177,2]
[347435204,1735807673241,-500.0,0.00019177,2]
[347435205,1735807673266,-500.0,0.00019177,2]
[347435206,1735807673292,-500.0,0.00019177,2]
[347435207,1735807673318,-500.0,0.00019177,2]
[347435208,1735807673345,-500.0,0.00019177,2]
[347435209,1735807673386,-500.0,0.00019177,2]
[347435210,1735807673411,-500.0,0.00019177,2]
[347435211,1735807673435,-500.0,0.00019177,2]
[347435212,1735807673461,-500.0,0.00019177,2]
[347435213,1735807673486,-500.0,0.00019177,2]
[347435214,1735807673511,-584.00295165,0.00019177,2]
[347435215,1735807673536,-500.0,0.00019177,2]
[347435216,1735807673560,-500.0,0.00019177,2]
[347435217,1735807673585,-500.0,0.00019177,2]
[347435218,1735807673611,-500.0,0.00019177,2]
[347435219,1735807673636,-500.0,0.00019177,2]
[347435220,1735807673660,-500.0,0.00019177,2]
[347435221,1735807673683,-500.0,0.00019177,2]
[347435222,1735807673707,-500.0,0.00019177,2]
[347435223,1735807673730,-500.0,0.00019177,2]
[347435224,1735807673754,-500.0,0.00019177,2]
[347435225,1735807673778,-500.0,0.00019177,2]
[347435226,1735807673812,-500.0,0.00019177,2]
[347435227,1735807673841,-500.0,0.00019177,2]
[347435228,1735807673866,-500.0,0.00019177,2]
[347435229,1735807673890,-500.0,0.00019177,2]
[347435230,1735807673915,-500.0,0.00019177,2]
[347435231,1735807673941,-500.0,0.00019177,2]
[347435232,1735807673966,-500.0,0.00019177,2]
[347435233,1735807673991,-500.0,0.00019177,2]
[347435234,1735807674018,-500.0,0.00019177,2]
[347435235,1735807674045,-500.0,0.00019177,2]
[347435236,1735807674071,-500.0,0.00019177,2]
[347435237,1735807674096,-500.0,0.00019177,2]
[347435238,1735807674122,-500.0,0.00019177,2]
[347435239,1735807674148,-500.0,0.00019177,2]
[347435240,1735807674173,-500.0,0.00019177,2]
[347435241,1735807674199,-285.52265342,0.00019177,2]
[347435242,1735807674225,-500.0,0.00019177,2]
[347435243,1735807674251,-500.0,0.00019177,2]
[347435244,1735807674278,-30021.21365498,0.00019178,2]
[347435245,1735807674304,-3659.3436682,0.00019178,2]
[347435246,1735807674332,-548.96040106,0.00019178,2]
[347435247,1735807674358,-500.0,0.00019178,2]
[347435248,1735807674383,-810.52,0.00019178,2]
[347435249,1735807674409,-1724.18,0.00019178,2]
[347435250,1735807674435,-500.0,0.00019178,2]
[347435251,1735807674459,-500.0,0.00019178,2]
[347435252,1735807674485,-500.0,0.00019178,2]
[347435253,1735807674511,-500.0,0.00019178,2]
[347435254,1735807674537,-236.87118085,0.00019178,2]
[347435255,1735807674562,-1706.5,0.00019178,2]
[347435256,1735807674587,-727.9,0.00019178,2]
[347435257,1735807674611,-500.0,0.00019178,2]
[347435258,1735807674783,-500.0,0.00019178,2]
[347435259,1735807674809,-500.0,0.00019178,2]
[347435260,1735807674835,-500.0,0.00019178,2]
[347435261,1735807674862,-500.0,0.00019178,2]
[347435262,1735807674887,-500.0,0.00019178,2]
[347435263,1735807674911,-500.0,0.00019178,2]
[347435264,1735807674939,-671.79,0.00019178,2]
[347435265,1735807674963,-500.0,0.00019178,2]
[347435266,1735807674988,-500.0,0.00019178,2]
[347435267,1735807675013,-500.0,0.00019178,2]
[347435268,1735807675039,-634.06,0.00019178,2]
[347435269,1735807675063,-500.0,0.00019178,2]
[347435270,1735807675086,-500.0,0.00019178,2]
[347435271,1735807675111,-500.0,0.00019178,2]
[347435272,1735807675136,-522.03,0.00019178,2]
[347435273,1735807675160,-2297.43,0.00019178,2]
[347435274,1735807675185,-500.0,0.00019178,2]
[347435275,1735807675208,-624.43,0.00019178,2]
[347435276,1735807675233,-500.0,0.00019178,2]
[347435277,1735807675257,-500.0,0.00019178,2]
[347435278,1735807675283,-500.0,0.00019178,2]
[347435279,1735807675306,-500.0,0.00019178,2]
[347435280,1735807675331,-500.0,0.00019178,2]
[347435281,1735807675355,-768.78,0.00019178,2]
[347435282,1735807675380,-656.56,0.00019178,2]
[347435283,1735807675408,-1252.81,0.00019178,2]
[347435284,1735807675438,-500.0,0.00019178,2]
[347435285,1735807675463,-4701.9,0.00019178,2]
[347435286,1735807675490,-500.0,0.00019178,2]
[347435287,1735807675516,-782.56,0.00019178,2]
[347435288,1735807675541,-500.0,0.00019178,2]
[347435289,1735807675565,-881.22,0.00019178,2]
[347435290,1735807675589,-500.0,0.00019178,2]
[347435291,1735807675613,-500.0,0.00019178,2]
[347435292,1735807675637,-500.0,0.00019178,2]
[347435293,1735807675662,-500.0,0.00019178,2]
[347435294,1735807675690,-618.47,0.00019178,2]
[347435295,1735807675715,-918.72,0.00019178,2]
[347435296,1735807675739,-500.0,0.00019178,2]
[347435297,1735807675764,-500.0,0.00019178,2]
[347435298,1735807675789,-500.0,0.00019178,2]
[347435299,1735807675813,-500.0,0.00019178,2]
[347435300,1735807675838,-500.0,0.00019178,2]
[347435301,1735807675862,-220.5597071,0.00019178,2]